fUST/lending_fUST_20240721
["ID","MTS","AMOUNT","RATE_DAILY","PERIOD"]
[332750978,1721502650016,-2146.19,0.00013972,2]
[332750979,1721502650027,-500.0,0.00013972,2]
[332750980,1721502650038,-500.0,0.00013972,2]
[332750981,1721502650049,-500.0,0.00013972,2]
[332750982,1721502650060,-500.0,0.00013972,2]
[332750983,1721502650071,-1566.01,0.00013972,2]
[332750984,1721502650081,-711.11,0.00013972,2]
[332750985,1721502650093,-500.0,0.00013972,2]
[332750986,1721502650104,-170.43129503,0.00013972,2]
[332750987,1721502650115,-500.0,0.00013972,2]
[332750988,1721502650127,-500.0,0.00013972,2]
[332750989,1721502650137,-563.29,0.00013972,2]
[332750990,1721502650150,-510.07389428,0.00013972,2]
[332750991,1721502650160,-529.26846187,0.00013972,2]
[332750992,1721502650171,-542.0321779,0.00013972,2]
[332750993,1721502650183,-500.0,0.00013972,2]
[332750994,1721502650195,-289.40371987,0.00013972,2]
[332750995,1721502650207,-3869.74,0.00013972,2]
[332750996,1721502650218,-500.0,0.00013972,2]
[332750997,1721502650229,-921.43,0.00013972,2]
[332750998,1721502650239,-500.0,0.00013972,2]
[332750999,1721502650250,-500.0,0.00013972,2]
[332751000,1721502650262,-500.0,0.00013972,2]
[332751001,1721502650275,-2074.95,0.00013972,2]
[332751002,1721502650286,-1226.56,0.00013972,2]
[332751003,1721502650296,-500.0,0.00013972,2]
[332751004,1721502650307,-654.24,0.00013972,2]
[332751005,1721502650319,-500.0,0.00013972,2]
[332751006,1721502650329,-744.59,0.00013972,2]
[332751007,1721502650340,-151.0,0.00013972,2]
[332751008,1721502650350,-1193.56,0.00013972,2]
[332751009,1721502650361,-2356.17,0.00013972,2]
[332751010,1721502650371,-2413.04,0.00013972,2]
[332751011,1721502650383,-3002.39,0.00013972,2]
[332751012,1721502650395,-500.0,0.00013972,2]
[332751013,1721502650409,-5614.66,0.00013972,2]
[332751014,1721502650421,-762.0,0.00013972,2]
[332751015,1721502650432,-3045.38,0.00013972,2]
[332751016,1721502650444,-699.32,0.00013972,2]
[332751017,1721502650455,-500.0,0.00013972,2]
[332751018,1721502650744,-601.56,0.00013972,2]
[332751019,1721502650768,-500.0,0.00013972,2]
[332751020,1721502650779,-539.75121852,0.00013972,2]
[332751021,1721502650792,-500.0,0.00013972,2]
[332751022,1721502650802,-500.0,0.00013972,2]
[332751023,1721502650811,-500.0,0.00013972,2]
[332751024,1721502650822,-2628.42,0.00013972,2]
[332751025,1721502650833,-511.02301535,0.00013972,2]
[332751026,1721502650843,-507.77956758,0.00013972,2]
[332751027,1721502650854,-2158.72,0.00013972,2]
[332751028,1721502650864,-607.75,0.00013972,2]
[332751029,1721502650875,-682.11,0.00013972,2]
[332751030,1721502650885,-500.0,0.00013972,2]
[332751031,1721502650896,-500.0,0.00013972,2]
[332751032,1721502650907,-500.0,0.00013972,2]
[332751033,1721502650919,-758.22,0.00013972,2]
[332751034,1721502650929,-500.0,0.00013972,2]
[332751035,1721502650938,-1334.16,0.00013972,2]
[332751036,1721502650947,-601.52472544,0.00013972,2]
[332751037,1721502650956,-1436.8,0.00013972,2]
[332751038,1721502650967,-500.0,0.00013972,2]
[332751039,1721502650979,-2479.41,0.00013972,2]
[332751040,1721502650989,-500.0,0.00013972,2]
[332751041,1721502650999,-9974.88,0.00013972,2]
[332751042,1721502651009,-3611.41,0.00013972,2]
[332751043,1721502651019,-500.0,0.00013972,2]
[332751044,1721502651028,-500.0,0.00013972,2]
[332751045,1721502651039,-647.58,0.00013972,2]
[332751046,1721502651051,-500.0,0.00013972,2]
[332751047,1721502651062,-769.49,0.00013972,2]
[332751048,1721502651073,-219.41559619,0.00013972,2]
[332751049,1721502651085,-500.0,0.00013972,2]
[332751050,1721502651095,-596.66,0.00013972,2]
[332751051,1721502651106,-1189.46,0.00013972,2]
[332751052,1721502651116,-500.0,0.00013972,2]
[332751053,1721502651126,-1876.24,0.00013972,2]
[332751054,1721502651135,-500.0,0.00013972,2]
[332751055,1721502651145,-500.0,0.00013972,2]
[332751056,1721502651156,-500.0,0.00013972,2]
[332751057,1721502651165,-500.0,0.00013972,2]
[332751058,1721502651174,-553.59452076,0.00013972,2]
[332751059,1721502651183,-500.0,0.00013972,2]
[332751060,1721502651193,-922.66,0.00013972,2]
[332751061,1721502651205,-3228.45,0.00013972,2]
[332751062,1721502651217,-500.0,0.00013972,2]
[332751063,1721502651227,-500.0,0.00013972,2]
[332751064,1721502651239,-500.0,0.00013972,2]
[332751065,1721502651249,-510.42578769,0.00013972,2]
[332751066,1721502651259,-693.44,0.00013972,2]
[332751067,1721502651268,-617.69,0.00013972,2]
[332751068,1721502651279,-2182.76,0.00013972,2]
[332751069,1721502651289,-500.0,0.00013972,2]
[332751070,1721502651300,-500.0,0.00013972,2]
[332751071,1721502651310,-9525.09,0.00013972,2]
[332751072,1721502651319,-500.0,0.00013972,2]
[332751073,1721502651329,-500.0,0.00013972,2]
[332751074,1721502651339,-500.0,0.00013972,2]
[332751075,1721502651350,-500.0,0.00013972,2]
[332751076,1721502651360,-500.0,0.00013972,2]
[332751077,1721502651369,-500.0,0.00013972,2]
[332751078,1721502651380,-500.0,0.00013972,2]
[332751079,1721502651390,-3568.54,0.00013972,2]
[332751080,1721502651400,-2915.71,0.00013972,2]
[332751081,1721502651411,-18390.94,0.00013972,2]
[332751082,1721502651422,-598.86,0.00013972,2]
[332751083,1721502651433,-912.35,0.00013972,2]
[332751084,1721502651444,-500.0,0.00013972,2]
[332751085,1721502651455,-151.0,0.00013972,2]
[332751086,1721502651466,-650.96,0.00013972,2]
[332751087,1721502651476,-2230.68,0.00013972,2]
[332751088,1721502651488,-500.0,0.00013972,2]
[332751089,1721502651498,-500.0,0.00013972,2]
[332751090,1721502651509,-5451.22,0.00013972,2]
[332751091,1721502651519,-2974.58,0.00013972,2]
[332751092,1721502651530,-1615.36,0.00013972,2]
[332751093,1721502651541,-500.0,0.00013972,2]
[332751094,1721502651551,-930.37,0.00013972,2]
[332751095,1721502651562,-1486.4,0.00013972,2]
[332751096,1721502651573,-500.0,0.00013972,2]
[332751097,1721502651582,-500.0,0.00013972,2]
[332751098,1721502651592,-505.99,0.00013972,2]
[332751099,1721502651601,-3008.42,0.00013972,2]
[332751100,1721502651610,-1164.01,0.00013972,2]
[332751101,1721502651619,-254.88943529,0.00013972,2]
[332751102,1721502651632,-500.0,0.00013972,2]
[332751103,1721502651643,-500.0,0.00013972,2]
[332751104,1721502651653,-500.0,0.00013972,2]
[332751105,1721502651666,-500.0,0.00013972,2]
[332751106,1721502651676,-520.92944104,0.00013972,2]
[332751107,1721502651688,-7393.66,0.00013972,2]
[332751108,1721502651699,-1240.33,0.00013972,2]
[332751109,1721502651713,-5002.05,0.00013972,2]
[332751110,1721502651726,-500.0,0.00013972,2]
[332751111,1721502651736,-637.33,0.00013972,2]
[332751112,1721502651746,-500.0,0.00013972,2]
[332751113,1721502651757,-500.0,0.00013972,2]
[332751114,1721502651768,-3246.02,0.00013972,2]
[332751115,1721502651779,-688.84,0.00013972,2]
[332751116,1721502651794,-500.0,0.00013972,2]
[332751117,1721502651806,-500.0,0.00013972,2]
[332751118,1721502651817,-500.0,0.00013972,2]
[332751119,1721502651829,-842.79,0.00013972,2]
[332751120,1721502651839,-506.63376774,0.00013972,2]
[332751121,1721502651849,-500.0,0.00013972,2]
[332751122,1721502651859,-500.0,0.00013972,2]
[332751123,1721502651869,-892.81,0.00013972,2]
[332751124,1721502651880,-513.24561122,0.00013972,2]
[332751125,1721502651891,-2112.87,0.00013972,2]
[332751126,1721502651901,-500.0,0.00013972,2]
[332751127,1721502651911,-500.0,0.00013972,2]
[332751128,1721502651922,-1172.79,0.00013972,2]
[332751129,1721502651933,-2831.62,0.00013972,2]
[332751130,1721502651943,-3992.43,0.00013972,2]
[332751131,1721502651953,-500.0,0.00013972,2]
[332751132,1721502651962,-756.41,0.00013972,2]
[332751133,1721502651972,-1025.73,0.00013972,2]
[332751134,1721502651981,-500.0,0.00013972,2]
[332751135,1721502651990,-539.10656031,0.00013972,2]
[332751136,1721502651999,-500.0,0.00013972,2]
[332751137,1721502652009,-1594.87,0.00013972,2]
[332751138,1721502652019,-500.0,0.00013972,2]
[332751139,1721502652028,-12028.21,0.00013972,2]
[332751140,1721502652037,-500.0,0.00013972,2]
[332751141,1721502652046,-500.0,0.00013972,2]
[332751142,1721502652055,-500.0,0.00013972,2]
[332751143,1721502652064,-500.0,0.00013972,2]
[332751144,1721502652074,-500.0,0.00013972,2]
[332751145,1721502652083,-2095.06,0.00013972,2]
[332751146,1721502652093,-787.88,0.00013972,2]
[332751147,1721502652102,-3362.83,0.00013972,2]
[332751148,1721502652111,-500.0,0.00013972,2]
[332751149,1721502652120,-500.0,0.00013972,2]
[332751150,1721502652130,-545.49,0.00013972,2]
[332751151,1721502652140,-1126.35,0.00013972,2]
[332751152,1721502652149,-1085.97,0.00013972,2]
[332751153,1721502652158,-500.0,0.00013972,2]
[332751154,1721502652167,-626.5,0.00013972,2]
[332751155,1721502652176,-2866.21,0.00013972,2]
[332751156,1721502652185,-500.0,0.00013972,2]
[332751157,1721502652195,-500.0,0.00013972,2]
[332751158,1721502652203,-1437.62,0.00013972,2]
[332751159,1721502652213,-500.0,0.00013972,2]
[332751160,1721502652223,-500.0,0.00013972,2]
[332751161,1721502652233,-558.13,0.00013972,2]
[332751162,1721502652242,-508.33268368,0.00013972,2]
[332751163,1721502652251,-3130.58,0.00013972,2]
[332751164,1721502652260,-500.0,0.00013972,2]
[332751165,1721502652269,-500.0,0.00013972,2]
[332751166,1721502652278,-500.0,0.00013972,2]
[332751167,1721502652287,-2781.42,0.00013972,2]
[332751168,1721502652296,-820.06,0.00013972,2]
[332751169,1721502652305,-2367.78,0.00013972,2]
[332751170,1721502652315,-500.0,0.00013972,2]
[332751171,1721502652324,-5408.7,0.00013972,2]
[332751172,1721502652333,-500.0,0.00013972,2]
[332751173,1721502652343,-500.0,0.00013972,2]
[332751174,1721502652353,-10858.16,0.00013972,2]
[332751175,1721502652362,-503.08165892,0.00013972,2]
[332751176,1721502652372,-1251.33,0.00013972,2]
[332751177,1721502652382,-500.0,0.00013972,2]
[332751178,1721502652392,-500.0,0.00013972,2]
[332751179,1721502652402,-500.0,0.00013972,2]
[332751180,1721502652411,-2190.32,0.00013972,2]
[332751181,1721502652420,-1627.8,0.00013972,2]
[332751182,1721502652430,-500.0,0.00013972,2]
[332751183,1721502652440,-500.0,0.00013972,2]
[332751184,1721502652449,-500.0,0.00013972,2]
[332751185,1721502652458,-1332.24,0.00013972,2]
[332751186,1721502652467,-500.0,0.00013972,2]
[332751187,1721502652477,-2697.92,0.00013972,2]
[332751188,1721502652486,-500.0,0.00013972,2]
[332751189,1721502652495,-500.0,0.00013972,2]
[332751190,1721502652504,-500.0,0.00013972,2]
[332751191,1721502652513,-1186.45,0.00013972,2]
[332751192,1721502652523,-500.0,0.00013972,2]
[332751193,1721502652532,-500.0,0.00013972,2]
[332751194,1721502652543,-500.0,0.00013972,2]
[332751195,1721502652553,-500.0,0.00013972,2]
[332751196,1721502652565,-1831.22,0.00013972,2]
[332751197,1721502652575,-1386.39,0.00013972,2]
[332751198,1721502652586,-608.63406425,0.00013972,2]
[332751199,1721502652597,-982.65,0.00013972,2]
[332751200,1721502652608,-500.0,0.00013972,2]
[332751201,1721502652618,-500.0,0.00013972,2]
[332751202,1721502652627,-515.92719608,0.00013972,2]
[332751203,1721502652637,-560.44,0.00013972,2]
[332751204,1721502652648,-500.0,0.00013972,2]
[332751205,1721502652658,-580.38,0.00013972,2]
[332751206,1721502652668,-500.0,0.00013972,2]
[332751207,1721502652678,-53188.42,0.00013972,2]
[332751208,1721502652689,-2374.03,0.00013972,2]
[332751209,1721502652699,-500.0,0.00013972,2]
[332751210,1721502652709,-500.0,0.00013972,2]
[332751211,1721502652723,-519.01,0.00013972,2]
[332751212,1721502652733,-983.82,0.00013972,2]
[332751213,1721502652743,-500.0,0.00013972,2]
[332751214,1721502652754,-500.0,0.00013972,2]
[332751215,1721502652765,-500.0,0.00013972,2]
[332751216,1721502652775,-513.01,0.00013972,2]
[332751217,1721502652784,-150.112233,0.00014,2]
[332751218,1721502652796,-150.112233,0.000141,5]
[332751219,1721502652806,-150.112233,0.000142,4]
[332751220,1721502652815,-500.0,0.00014246,2]
[332751221,1721502652826,-500.0,0.00014246,2]
[332751222,1721502652835,-500.0,0.00014246,2]
[332751223,1721502652844,-500.0,0.00014246,2]
[332751224,1721502652856,-2148.74,0.00014246,2]
[332751225,1721502652866,-767.58,0.00014246,2]
[332751226,1721502652876,-500.0,0.00014246,2]
[332751227,1721502652885,-500.0,0.00014246,2]
[332751228,1721502652895,-500.0,0.00014246,2]
[332751229,1721502652905,-500.0,0.00014246,2]
[332751230,1721502652914,-516.82,0.00014246,2]
[332751231,1721502652924,-869.09,0.00014246,2]
[332751232,1721502652934,-500.0,0.00014246,2]
[332751233,1721502652945,-500.0,0.00014246,2]
[332751234,1721502652954,-659.76,0.00014246,2]
[332751235,1721502652964,-585.8279471,0.00014246,2]
[332751236,1721502652974,-500.0,0.00014246,2]
[332751237,1721502652985,-500.0,0.00014246,2]
[332751238,1721502652996,-1280.91,0.00014246,2]
[332751239,1721502653005,-510.23,0.00014246,2]
[332751240,1721502653017,-574.37,0.00014246,2]
[332751241,1721502653031,-624.8,0.00014246,2]
[332751242,1721502653041,-1630.66,0.00014246,2]
[332751243,1721502653051,-500.0,0.00014246,2]
[332751244,1721502653061,-897.05,0.00014246,2]
[332751245,1721502653071,-500.0,0.00014246,2]
[332751246,1721502653082,-569.39,0.00014246,2]
[332751247,1721502653091,-500.0,0.00014246,2]
[332751248,1721502653102,-500.0,0.00014246,2]
[332751249,1721502653112,-500.0,0.00014246,2]
[332751250,1721502653121,-855.45,0.00014246,2]
[332751251,1721502653131,-500.0,0.00014246,2]
[332751252,1721502653141,-500.0,0.00014246,2]
[332751253,1721502653151,-500.0,0.00014246,2]
[332751254,1721502653160,-500.0,0.00014246,2]
[332751255,1721502653172,-514.11,0.00014246,2]
[332751256,1721502653182,-500.0,0.00014246,2]
[332751257,1721502653191,-500.0,0.00014246,2]
[332751258,1721502653200,-570.33,0.00014246,2]
[332751259,1721502653209,-1729.02,0.00014246,2]
[332751260,1721502653218,-500.0,0.00014246,2]
[332751261,1721502653228,-841.34,0.00014246,2]
[332751262,1721502653238,-3333.82,0.00014246,2]
[332751263,1721502653250,-811.6,0.00014246,2]
[332751264,1721502653262,-500.0,0.00014246,2]
[332751265,1721502653272,-500.0,0.00014246,2]
[332751266,1721502653283,-890.96,0.00014246,2]
[332751267,1721502653294,-500.0,0.00014246,2]
[332751268,1721502653303,-910.84,0.00014246,2]
[332751269,1721502653314,-500.0,0.00014246,2]
[332751270,1721502653324,-2988.04,0.00014246,2]
[332751271,1721502653335,-155.98610733,0.00014246,2]
[332751272,1721502653346,-907.34,0.00014246,2]
[332751273,1721502653355,-500.0,0.00014246,2]
[332751274,1721502653367,-500.0,0.00014246,2]
[332751275,1721502653378,-815.17,0.00014246,2]
[332751276,1721502653387,-549.03428632,0.00014246,2]
[332751277,1721502653398,-500.0,0.00014246,2]
[332751278,1721502653408,-796.91,0.00014246,2]
[332751279,1721502653418,-500.0,0.00014246,2]
[332751280,1721502653429,-500.0,0.00014246,2]
[332751281,1721502653439,-549.5,0.00014246,2]
[332751282,1721502653450,-1045.53,0.00014246,2]
[332751283,1721502653459,-2405.94,0.00014246,2]
[332751284,1721502653470,-1192.24,0.00014246,2]
[332751285,1721502653482,-500.0,0.00014246,2]
[332751286,1721502653492,-1176.28,0.00014246,2]
[332751287,1721502653501,-596.33,0.00014246,2]
[332751288,1721502653511,-500.0,0.00014246,2]
[332751289,1721502653520,-500.0,0.00014246,2]
[332751290,1721502653529,-500.0,0.00014246,2]
[332751291,1721502653539,-691.36,0.00014246,2]
[332751292,1721502653548,-500.0,0.00014246,2]
[332751293,1721502653557,-500.0,0.00014246,2]
[332751294,1721502653567,-677.36,0.00014246,2]
[332751295,1721502653576,-500.0,0.00014246,2]
[332751296,1721502653585,-500.0,0.00014246,2]
[332751297,1721502653594,-2278.46,0.00014246,2]
[332751298,1721502653603,-554.43944664,0.00014246,2]
[332751299,1721502653613,-500.0,0.00014246,2]
[332751300,1721502653622,-505.68,0.00014246,2]
[332751301,1721502653631,-4286.48,0.00014246,2]
[332751302,1721502653640,-840.8,0.00014246,2]
[332751303,1721502653649,-500.0,0.00014246,2]
[332751304,1721502653659,-1468.94,0.00014246,2]
[332751305,1721502653669,-665.65,0.00014246,2]
[332751306,1721502653679,-500.0,0.00014246,2]
[332751307,1721502653688,-1167.12,0.00014246,2]
[332751308,1721502653697,-500.0,0.00014246,2]
[332751309,1721502653708,-500.0,0.00014246,2]
[332751310,1721502653723,-500.0,0.00014246,2]
[332751311,1721502653733,-505.5,0.00014246,2]
[332751312,1721502653743,-500.0,0.00014246,2]
[332751313,1721502653753,-594.43,0.00014246,2]
[332751314,1721502653762,-500.0,0.00014246,2]
[332751315,1721502653772,-500.0,0.00014246,2]
[332751316,1721502653781,-500.0,0.00014246,2]
[332751317,1721502653794,-959.91,0.00014246,2]
[332751318,1721502653804,-620.43,0.00014246,2]
[332751319,1721502653814,-500.0,0.00014246,2]
[332751320,1721502653823,-173.75511392,0.00014246,2]
[332751321,1721502653833,-500.0,0.00014246,2]
[332751322,1721502653842,-688.18,0.00014246,2]
[332751323,1721502653852,-1890.28,0.00014246,2]
[332751324,1721502653862,-817.2,0.00014246,2]
[332751325,1721502653871,-170.72705745,0.00014246,2]
[332751326,1721502653883,-500.0,0.00014246,2]
[332751327,1721502653894,-500.0,0.00014246,2]
[332751328,1721502653906,-500.0,0.00014246,2]
[332751329,1721502653916,-479.02754092,0.00014246,2]
[332751330,1721502653926,-500.0,0.00014246,2]
[332751331,1721502653935,-500.0,0.00014246,2]
[332751332,1721502653944,-500.0,0.00014246,2]
[332751333,1721502653955,-500.0,0.00014246,2]
[332751334,1721502653965,-609.35,0.00014246,2]
[332751335,1721502653975,-596.65,0.00014246,2]
[332751336,1721502653985,-500.0,0.00014246,2]
[332751337,1721502653994,-813.45,0.00014246,2]
[332751338,1721502654003,-500.0,0.00014246,2]
[332751339,1721502654167,-500.0,0.00014246,2]
[332751340,1721502654179,-1086.772294,0.00014246,2]
[332751341,1721502654190,-508.80795726,0.00014246,2]
[332751342,1721502654200,-861.65,0.00014246,2]
[332751343,1721502654209,-555.93805008,0.00014246,2]
[332751344,1721502654220,-1086.772294,0.00014246,2]
[332751345,1721502654230,-636.52390275,0.00014246,2]
[332751346,1721502654242,-500.0,0.00014246,2]
[332751347,1721502654252,-500.0,0.00014246,2]
[332751348,1721502654262,-558.31,0.00014246,2]
[332751349,1721502654271,-688.03,0.00014246,2]
[332751350,1721502654281,-500.0,0.00014246,2]
[332751351,1721502654290,-500.0,0.00014246,2]
[332751352,1721502654299,-2734.19,0.00014246,2]
[332751353,1721502654308,-539.26,0.00014246,2]
[332751354,1721502654318,-1930.7,0.00014246,2]
[332751355,1721502654327,-500.0,0.00014246,2]
[332751356,1721502654336,-500.0,0.00014246,2]
[332751357,1721502654345,-1766.9,0.00014246,2]
[332751358,1721502654355,-500.0,0.00014246,2]
[332751359,1721502654365,-500.0,0.00014246,2]
[332751360,1721502654374,-500.0,0.00014246,2]
[332751361,1721502654384,-1282.95,0.00014246,2]
[332751362,1721502654393,-500.0,0.00014246,2]
[332751363,1721502654403,-500.0,0.00014246,2]
[332751364,1721502654412,-500.0,0.00014246,2]
[332751365,1721502654422,-500.0,0.00014246,2]
[332751366,1721502654431,-500.0,0.00014246,2]
[332751367,1721502654440,-500.0,0.00014246,2]
[332751368,1721502654449,-500.0,0.00014246,2]
[332751369,1721502654459,-500.0,0.00014246,2]
[332751370,1721502654469,-150.0,0.00014246,2]
[332751371,1721502654479,-500.0,0.00014246,2]
[332751372,1721502654488,-500.0,0.00014246,2]
[332751373,1721502654497,-500.0,0.00014246,2]
[332751374,1721502654506,-500.0,0.00014246,2]
[332751375,1721502654515,-500.0,0.00014246,2]
[332751376,1721502654525,-500.0,0.00014246,2]
[332751377,1721502654534,-500.0,0.00014246,2]
[332751378,1721502654544,-500.0,0.00014246,2]
[332751379,1721502654554,-1393.65,0.00014246,2]
[332751380,1721502654563,-500.0,0.00014246,2]
[332751381,1721502654572,-961.48,0.00014246,2]
[332751382,1721502654582,-500.0,0.00014246,2]
[332751383,1721502654592,-381.21198987,0.00014246,2]
[332751384,1721502654603,-500.0,0.00014246,2]
[332751385,1721502654614,-500.0,0.00014246,2]
[332751386,1721502654626,-500.0,0.00014246,2]
[332751387,1721502654637,-1367.5,0.00014246,2]
[332751388,1721502654648,-500.0,0.00014246,2]
[332751389,1721502654658,-500.0,0.00014246,2]
[332751390,1721502654668,-500.0,0.00014246,2]
[332751391,1721502654678,-500.0,0.00014246,2]
[332751392,1721502654688,-500.0,0.00014246,2]
[332751393,1721502654700,-500.0,0.00014246,2]
[332751394,1721502654711,-2168.23,0.00014246,2]
[332751395,1721502654726,-255.62,0.00014246,2]
[332751396,1721502654735,-151.0,0.00014246,2]
[332751397,1721502654745,-151.0,0.00014246,2]
[332751398,1721502654756,-763.32,0.00014246,2]
[332751399,1721502654766,-151.0,0.00014246,2]
[332751400,1721502654777,-151.0,0.00014246,2]
[332751401,1721502654787,-560.63,0.00014246,2]
[332751402,1721502654798,-2063.58,0.00014246,2]
[332751403,1721502654809,-529.69,0.00014246,2]
[332751404,1721502654819,-1069.52,0.00014246,2]
[332751405,1721502654830,-1791.92,0.00014246,2]
[332751406,1721502654839,-1003.63,0.00014246,2]
[332751407,1721502654851,-652.79,0.00014246,2]
[332751408,1721502654861,-897.56,0.00014246,2]
[332751409,1721502654871,-541.46,0.00014246,2]
[332751410,1721502654881,-500.0,0.00014246,2]
[332751411,1721502654893,-1267.33,0.00014246,2]
[332751412,1721502654903,-500.0,0.00014246,2]
[332751413,1721502654914,-724.24,0.00014246,2]
[332751414,1721502654925,-721.38,0.00014246,2]
[332751415,1721502654936,-1614.07,0.00014246,2]
[332751416,1721502654946,-352.51834169,0.00014246,2]
[332751417,1721502654956,-500.0,0.00014246,2]
[332751418,1721502654966,-500.0,0.00014246,2]
[332751419,1721502654976,-2399.27,0.00014246,2]
[332751420,1721502654985,-35124.72,0.00014246,2]
[332751421,1721502654995,-989.91,0.00014246,2]
[332751422,1721502655005,-503.98,0.00014246,2]
[332751423,1721502655015,-500.0,0.00014246,2]
[332751424,1721502655024,-500.0,0.00014246,2]
[332751425,1721502655033,-642.9,0.00014246,2]
[332751426,1721502655042,-521.24,0.00014246,2]
[332751427,1721502655051,-500.0,0.00014246,2]
[332751428,1721502655061,-2146.19,0.00014246,2]
[332751429,1721502655071,-500.0,0.00014246,2]
[332751430,1721502655080,-500.0,0.00014246,2]
[332751431,1721502655089,-500.0,0.00014246,2]
[332751432,1721502655099,-500.0,0.00014246,2]
[332751433,1721502655108,-1566.01,0.00014246,2]
[332751434,1721502655117,-711.11,0.00014246,2]
[332751435,1721502655127,-500.0,0.00014246,2]
[332751436,1721502655136,-500.0,0.00014246,2]
[332751437,1721502655145,-500.0,0.00014246,2]
[332751438,1721502655156,-563.29,0.00014246,2]
[332751439,1721502655165,-500.0,0.00014246,2]
[332751440,1721502655175,-3869.74,0.00014246,2]
[332751441,1721502655184,-500.0,0.00014246,2]
[332751442,1721502655193,-921.43,0.00014246,2]
[332751443,1721502655203,-500.0,0.00014246,2]
[332751444,1721502655212,-500.0,0.00014246,2]
[332751445,1721502655222,-500.0,0.00014246,2]
[332751446,1721502655231,-2074.95,0.00014246,2]
[332751447,1721502655240,-1226.56,0.00014246,2]
[332751448,1721502655250,-500.0,0.00014246,2]
[332751449,1721502655259,-654.24,0.00014246,2]
[332751450,1721502655269,-500.0,0.00014246,2]
[332751451,1721502655279,-744.59,0.00014246,2]
[332751452,1721502655289,-1193.56,0.00014246,2]
[332751453,1721502655300,-151.0,0.00014246,2]
[332751454,1721502655311,-2356.17,0.00014246,2]
[332751455,1721502655321,-2413.04,0.00014246,2]
[332751456,1721502655331,-3002.39,0.00014246,2]
[332751457,1721502655341,-500.0,0.00014246,2]
[332751458,1721502655351,-5614.66,0.00014246,2]
[332751459,1721502655361,-762.0,0.00014246,2]
[332751460,1721502655372,-699.32,0.00014246,2]
[332751461,1721502655384,-3045.38,0.00014246,2]
[332751462,1721502655394,-500.0,0.00014246,2]
[332751463,1721502655404,-601.56,0.00014246,2]
[332751464,1721502655413,-500.0,0.00014246,2]
[332751465,1721502655424,-500.0,0.00014246,2]
[332751466,1721502655434,-500.0,0.00014246,2]
[332751467,1721502655443,-500.0,0.00014246,2]
[332751468,1721502655453,-2628.42,0.00014246,2]
[332751469,1721502655464,-2158.72,0.00014246,2]
[332751470,1721502655474,-607.75,0.00014246,2]
[332751471,1721502655485,-682.11,0.00014246,2]
[332751472,1721502655495,-500.0,0.00014246,2]
[332751473,1721502655506,-500.0,0.00014246,2]
[332751474,1721502655517,-500.0,0.00014246,2]
[332751475,1721502655534,-758.22,0.00014246,2]
[332751476,1721502655546,-500.0,0.00014246,2]
[332751477,1721502655556,-1334.16,0.00014246,2]